[Event "*** Titled Tuesday Blitz"]
[Site "Chess.com"]
[Date "2021.04.20"]
[Round "4"]
[White "tteshan"]
[Black "JoseRemolar"]
[Result "1-0"]
[WhiteElo "2259"]
[BlackElo "2415"]
[TimeControl "180+1"]
[EndTime "10:37:45 PDT"]
[Termination "tteshan won on time"]

1. d4 {[%clk 0:03:00.9]} 1... Nf6 {[%clk 0:02:59.5]} 2. c4 {[%clk 0:02:54.8]}
2... g6 {[%clk 0:02:59.6]} 3. Nc3 {[%clk 0:02:55.3]} 3... d6 {[%clk 0:02:59.2]}
4. e4 {[%clk 0:02:55.4]} 4... Bg7 {[%clk 0:02:59.1]} 5. Be2 {[%clk 0:02:56]}
5... O-O {[%clk 0:02:58.8]} 6. Bg5 {[%clk 0:02:56.3]} 6... Na6 {[%clk
0:02:52.4]} 7. Qd2 {[%clk 0:02:56]} 7... c6 {[%clk 0:02:50.2]} 8. h4 {[%clk
0:02:54.2]} 8... h5 {[%clk 0:02:24.8]} 9. f3 {[%clk 0:02:38.4]} 9... Nc7 {[%clk
0:01:51.8]} 10. O-O-O {[%clk 0:02:27.2]} 10... Rb8 {[%clk 0:01:38.8]} 11. Nh3
{[%clk 0:02:22.3]} 11... Bxh3 {[%clk 0:01:35.1]} 12. Rxh3 {[%clk 0:02:21.9]}
12... b5 {[%clk 0:01:33.9]} 13. cxb5 {[%clk 0:02:18.5]} 13... cxb5 {[%clk
0:01:33.6]} 14. Rg1 {[%clk 0:02:18.2]} 14... b4 {[%clk 0:01:30.5]} 15. Nd1
{[%clk 0:02:18.4]} 15... Ne6 {[%clk 0:01:26.3]} 16. Be3 {[%clk 0:02:09.7]} 16...
Qa5 {[%clk 0:01:20.1]} 17. Kb1 {[%clk 0:02:04.2]} 17... Rfc8 {[%clk 0:01:20]}
18. Nf2 {[%clk 0:01:48.7]} 18... Rc3 {[%clk 0:01:09.4]} 19. g4 {[%clk
0:01:29.3]} 19... hxg4 {[%clk 0:00:20.7]} 20. fxg4 {[%clk 0:01:28.4]} 20... d5
{[%clk 0:00:10.3]} 21. e5 {[%clk 0:01:25]} 21... Ne4 {[%clk 0:00:10.1]} 22. Nxe4
{[%clk 0:01:25.1]} 22... dxe4 {[%clk 0:00:11]} 23. h5 {[%clk 0:01:18]} 23... Qd5
{[%clk 0:00:08.3]} 24. hxg6 {[%clk 0:01:12.8]} 24... fxg6 {[%clk 0:00:09.2]} 25.
Rgh1 {[%clk 0:01:06.1]} 25... Rc7 {[%clk 0:00:03.2]} 26. Bh6 {[%clk 0:00:48.5]}
26... Qxd4 {[%clk 0:00:02.9]} 27. Qxd4 {[%clk 0:00:36.4]} 27... Nxd4 {[%clk
0:00:03.8]} 28. Bxg7 {[%clk 0:00:35.2]} 28... Kxg7 {[%clk 0:00:04.7]} 29. Rh7+
{[%clk 0:00:34.9]} 29... Kf8 {[%clk 0:00:03.4]} 30. Rh8+ {[%clk 0:00:34.5]}
30... Kf7 {[%clk 0:00:03.9]} 31. Rxb8 {[%clk 0:00:25]} 31... Nxe2 {[%clk
0:00:04]} 32. Re1 {[%clk 0:00:22.1]} 32... Ng3 {[%clk 0:00:01.4]} 33. Rxb4
{[%clk 0:00:21.9]} 33... Ke6 {[%clk 0:00:01.6]} 34. Rb3 {[%clk 0:00:20.3]} 34...
e3 {[%clk 0:00:01.2]} 35. Rbxe3 {[%clk 0:00:19.8]} 1-0

[Event "*** Titled Tuesday Blitz"]
[Site "Chess.com"]
[Date "2021.04.20"]
[Round "4"]
[White "suyu28"]
[Black "Piotrek1979"]
[Result "1/2-1/2"]
[WhiteElo "2606"]
[BlackElo "2407"]
[TimeControl "180+1"]
[EndTime "10:37:46 PDT"]
[Termination "Game drawn by repetition"]

1. e4 {[%clk 0:03:00.4]} 1... c6 {[%clk 0:03:00.4]} 2. d4 {[%clk 0:03:00.5]}
2... d5 {[%clk 0:03:01.3]} 3. e5 {[%clk 0:03:00.6]} 3... Bf5 {[%clk 0:03:00.5]}
4. Nf3 {[%clk 0:03:01]} 4... e6 {[%clk 0:03:00.4]} 5. Be2 {[%clk 0:03:01.2]}
5... Ne7 {[%clk 0:02:58.2]} 6. O-O {[%clk 0:03:00.9]} 6... Nd7 {[%clk
0:02:58.6]} 7. c4 {[%clk 0:03:00.5]} 7... dxc4 {[%clk 0:02:54.1]} 8. Bxc4 {[%clk
0:02:58.5]} 8... Nd5 {[%clk 0:02:55]} 9. Nc3 {[%clk 0:02:57]} 9... Be7 {[%clk
0:02:52.3]} 10. h3 {[%clk 0:02:53.3]} 10... O-O {[%clk 0:02:51.1]} 11. Re1
{[%clk 0:02:52.3]} 11... Nxc3 {[%clk 0:02:41]} 12. bxc3 {[%clk 0:02:52]} 12...
c5 {[%clk 0:02:41.3]} 13. Qe2 {[%clk 0:02:20.8]} 13... Nb6 {[%clk 0:02:38.1]}
14. Bb3 {[%clk 0:02:20.2]} 14... Rc8 {[%clk 0:02:22.2]} 15. dxc5 {[%clk
0:02:15.5]} 15... Bxc5 {[%clk 0:02:15]} 16. Rd1 {[%clk 0:02:14.9]} 16... Qc7
{[%clk 0:02:12.9]} 17. Nh4 {[%clk 0:02:13.2]} 17... Bg6 {[%clk 0:02:01.5]} 18.
Nxg6 {[%clk 0:02:12.4]} 18... hxg6 {[%clk 0:02:02]} 19. a4 {[%clk 0:02:06.3]}
19... Rfd8 {[%clk 0:01:59.1]} 20. Bg5 {[%clk 0:02:00.4]} 20... Be7 {[%clk
0:01:57.7]} 21. Bxe7 {[%clk 0:01:59.3]} 21... Qxe7 {[%clk 0:01:58.6]} 22. a5
{[%clk 0:01:59.5]} 22... Nd7 {[%clk 0:01:47.2]} 23. Qb5 {[%clk 0:01:41.1]} 23...
Nc5 {[%clk 0:01:43]} 24. Bc2 {[%clk 0:01:39.1]} 24... Qc7 {[%clk 0:01:34.1]} 25.
Qe2 {[%clk 0:01:29.9]} 25... Rxd1+ {[%clk 0:01:23.5]} 26. Rxd1 {[%clk
0:01:29.3]} 26... Rd8 {[%clk 0:01:24.3]} 27. Rd4 {[%clk 0:01:24.3]} 27... Qxa5
{[%clk 0:01:16.9]} 28. Qc4 {[%clk 0:01:21.2]} 28... Rxd4 {[%clk 0:01:09.9]} 29.
cxd4 {[%clk 0:01:21.2]} 29... Qe1+ {[%clk 0:00:40.7]} 30. Kh2 {[%clk 0:01:20.5]}
30... Ne4 {[%clk 0:00:40.7]} 31. Qc8+ {[%clk 0:01:09.6]} 31... Kh7 {[%clk
0:00:40.1]} 32. Qxb7 {[%clk 0:01:09.6]} 32... Nxf2 {[%clk 0:00:39]} 33. Qxf7
{[%clk 0:01:01.4]} 33... Ne4 {[%clk 0:00:22.7]} 34. Qf3 {[%clk 0:00:53.1]} 34...
Nd2 {[%clk 0:00:17.6]} 35. Qh5+ {[%clk 0:00:27.2]} 35... Kg8 {[%clk 0:00:16.9]}
36. Qxg6 {[%clk 0:00:27.5]} 36... Nf1+ {[%clk 0:00:17]} 37. Kg1 {[%clk
0:00:27.9]} 37... Ne3+ {[%clk 0:00:16.4]} 38. Kh2 {[%clk 0:00:28.3]} 38... Nf1+
{[%clk 0:00:15]} 39. Kg1 {[%clk 0:00:28.6]} 39... Ng3+ {[%clk 0:00:14.5]} 40.
Kh2 {[%clk 0:00:28.7]} 40... Nf1+ {[%clk 0:00:08.3]} 1/2-1/2

[Event "*** Titled Tuesday Blitz"]
[Site "Chess.com"]
[Date "2021.04.20"]
[Round "4"]
[White "SchmakAttack"]
[Black "starplatinum2030"]
[Result "1-0"]
[WhiteElo "2605"]
[BlackElo "2268"]
[TimeControl "180+1"]
[EndTime "10:37:46 PDT"]
[Termination "SchmakAttack won by resignation"]

1. Nf3 {[%clk 0:03:00]} 1... Nf6 {[%clk 0:02:59.8]} 2. c4 {[%clk 0:02:57]} 2...
e6 {[%clk 0:02:58.5]} 3. g3 {[%clk 0:02:55.9]} 3... d5 {[%clk 0:02:58.4]} 4. Bg2
{[%clk 0:02:55.5]} 4... Be7 {[%clk 0:02:58.6]} 5. O-O {[%clk 0:02:55.2]} 5...
O-O {[%clk 0:02:59.1]} 6. b3 {[%clk 0:02:55.3]} 6... c5 {[%clk 0:02:58.3]} 7.
Bb2 {[%clk 0:02:55]} 7... Nc6 {[%clk 0:02:57.3]} 8. e3 {[%clk 0:02:54.1]} 8...
b6 {[%clk 0:02:56]} 9. d4 {[%clk 0:02:48]} 9... Bb7 {[%clk 0:02:54.5]} 10. Nbd2
{[%clk 0:02:45.8]} 10... Rc8 {[%clk 0:02:51.8]} 11. Qe2 {[%clk 0:02:40.3]} 11...
Qc7 {[%clk 0:02:47]} 12. Rac1 {[%clk 0:02:32]} 12... Qb8 {[%clk 0:02:46.8]} 13.
Rfd1 {[%clk 0:02:26.8]} 13... Rfd8 {[%clk 0:02:45.4]} 14. dxc5 {[%clk
0:02:18.4]} 14... bxc5 {[%clk 0:02:41.3]} 15. cxd5 {[%clk 0:02:17.4]} 15... exd5
{[%clk 0:02:32.4]} 16. Bxf6 {[%clk 0:02:15.4]} 16... gxf6 {[%clk 0:02:33.3]} 17.
Nh4 {[%clk 0:02:07.3]} 17... Ne5 {[%clk 0:02:32.8]} 18. Nf5 {[%clk 0:01:35.5]}
18... Bf8 {[%clk 0:02:31.8]} 19. e4 {[%clk 0:01:21.5]} 19... d4 {[%clk
0:02:24.6]} 20. Nc4 {[%clk 0:01:21.6]} 20... Ba6 {[%clk 0:02:09.7]} 21. f4
{[%clk 0:01:20.3]} 21... Bxc4 {[%clk 0:02:08.8]} 22. bxc4 {[%clk 0:01:20]} 22...
Ng6 {[%clk 0:02:08.8]} 23. Rb1 {[%clk 0:01:09.4]} 23... Qc7 {[%clk 0:02:08.3]}
24. e5 {[%clk 0:00:59.8]} 24... Re8 {[%clk 0:01:26.4]} 25. Rb7 {[%clk
0:00:58.7]} 25... Qd8 {[%clk 0:01:22.2]} 26. Bd5 {[%clk 0:00:52.4]} 26... Rc7
{[%clk 0:01:21.9]} 27. Rdb1 {[%clk 0:00:48.5]} 27... fxe5 {[%clk 0:00:56.4]} 28.
Rxc7 {[%clk 0:00:48]} 28... Qxc7 {[%clk 0:00:49.4]} 29. Rb7 {[%clk 0:00:47.9]}
29... Qc8 {[%clk 0:00:49.4]} 30. Rxf7 {[%clk 0:00:39.4]} 30... Re6 {[%clk
0:00:34.5]} 31. Rf6 {[%clk 0:00:30.2]} 31... Qb8 {[%clk 0:00:22.8]} 32. Rxe6
{[%clk 0:00:27.5]} 32... Qb1+ {[%clk 0:00:20.4]} 33. Qf1 {[%clk 0:00:21.2]}
33... Qxf5 {[%clk 0:00:16.2]} 34. Rf6+ {[%clk 0:00:20.2]} 1-0

[Event "*** Titled Tuesday Blitz"]
[Site "Chess.com"]
[Date "2021.04.20"]
[Round "4"]
[White "ferch1ni"]
[Black "AndreyNeves"]
[Result "1-0"]
[WhiteElo "2432"]
[BlackElo "2235"]
[TimeControl "180+1"]
[EndTime "10:37:46 PDT"]
[Termination "ferch1ni won on time"]

1. e4 {[%clk 0:03:00.9]} 1... e5 {[%clk 0:02:59.5]} 2. Nf3 {[%clk 0:03:01]} 2...
Nc6 {[%clk 0:02:58.9]} 3. Bb5 {[%clk 0:03:01.4]} 3... a6 {[%clk 0:02:58.3]} 4.
Ba4 {[%clk 0:03:01.3]} 4... Nf6 {[%clk 0:02:58.4]} 5. O-O {[%clk 0:03:00.9]}
5... b5 {[%clk 0:02:58.5]} 6. Bb3 {[%clk 0:03:01]} 6... Bb7 {[%clk 0:02:58.8]}
7. d4 {[%clk 0:02:56.7]} 7... exd4 {[%clk 0:02:52.6]} 8. e5 {[%clk 0:02:50.4]}
8... Ne4 {[%clk 0:02:52.4]} 9. Nxd4 {[%clk 0:02:43.9]} 9... Nxd4 {[%clk
0:02:50.2]} 10. Qxd4 {[%clk 0:02:43.5]} 10... Bc5 {[%clk 0:02:50.2]} 11. Qd3
{[%clk 0:02:42.6]} 11... O-O {[%clk 0:02:47.6]} 12. Be3 {[%clk 0:02:41.6]} 12...
d5 {[%clk 0:02:28.5]} 13. exd6 {[%clk 0:02:36.7]} 13... Bxd6 {[%clk 0:02:22.1]}
14. Nd2 {[%clk 0:01:48.3]} 14... Qh4 {[%clk 0:01:51.9]} 15. g3 {[%clk
0:00:52.5]} 15... Nxg3 {[%clk 0:01:46.8]} 16. fxg3 {[%clk 0:00:51.9]} 16... Bxg3
{[%clk 0:01:45]} 17. Qe2 {[%clk 0:00:45.3]} 17... Rae8 {[%clk 0:00:38.8]} 18.
Nf3 {[%clk 0:00:45]} 18... Rxe3 {[%clk 0:00:25.6]} 19. Qxe3 {[%clk 0:00:19.6]}
19... Bxf3 {[%clk 0:00:23.8]} 20. Rxf3 {[%clk 0:00:16.4]} 20... Qxh2+ {[%clk
0:00:21.4]} 21. Kf1 {[%clk 0:00:16.8]} 21... Qh1+ {[%clk 0:00:18.1]} 22. Ke2
{[%clk 0:00:16.1]} 22... Qg2+ {[%clk 0:00:12.7]} 23. Kd3 {[%clk 0:00:12.6]}
23... Rd8+ {[%clk 0:00:11.9]} 24. Kc3 {[%clk 0:00:11.2]} 24... Be5+ {[%clk
0:00:09.9]} 25. Kb4 {[%clk 0:00:09.1]} 25... a5+ {[%clk 0:00:07.9]} 26. Kxa5
{[%clk 0:00:06.8]} 26... Qg6 {[%clk 0:00:05.1]} 27. Bxf7+ {[%clk 0:00:06.2]}
27... Qxf7 {[%clk 0:00:04.8]} 28. Rxf7 {[%clk 0:00:07.1]} 28... Kxf7 {[%clk
0:00:05]} 29. Qxe5 {[%clk 0:00:07.3]} 1-0

[Event "*** Titled Tuesday Blitz"]
[Site "Chess.com"]
[Date "2021.04.20"]
[Round "4"]
[White "BL4D3RUNN3R"]
[Black "eCztery"]
[Result "0-1"]
[WhiteElo "2115"]
[BlackElo "2393"]
[TimeControl "180+1"]
[EndTime "10:37:46 PDT"]
[Termination "eCztery won by checkmate"]

1. Nf3 {[%clk 0:03:00.9]} 1... g6 {[%clk 0:02:59.7]} 2. d4 {[%clk 0:02:57.7]}
2... Nf6 {[%clk 0:02:55.8]} 3. c4 {[%clk 0:02:53.3]} 3... Bg7 {[%clk 0:02:50.7]}
4. g3 {[%clk 0:02:52.7]} 4... d5 {[%clk 0:02:48.1]} 5. cxd5 {[%clk 0:02:51.1]}
5... Nxd5 {[%clk 0:02:49]} 6. Bg2 {[%clk 0:02:50]} 6... O-O {[%clk 0:02:48.6]}
7. e4 {[%clk 0:02:47.4]} 7... Nb6 {[%clk 0:02:47.7]} 8. h3 {[%clk 0:02:44.9]}
8... c5 {[%clk 0:02:42.6]} 9. d5 {[%clk 0:02:40.6]} 9... e6 {[%clk 0:02:39.1]}
10. Nc3 {[%clk 0:02:36.2]} 10... exd5 {[%clk 0:02:38.7]} 11. exd5 {[%clk
0:02:31.4]} 11... Re8+ {[%clk 0:02:25.3]} 12. Be3 {[%clk 0:02:29.9]} 12... Nc4
{[%clk 0:02:25.1]} 13. O-O {[%clk 0:02:22.7]} 13... Rxe3 {[%clk 0:01:54.2]} 14.
fxe3 {[%clk 0:02:15.5]} 14... Nxe3 {[%clk 0:01:55.1]} 15. Qd2 {[%clk 0:02:12.8]}
15... Nxf1 {[%clk 0:01:55]} 16. Rxf1 {[%clk 0:02:09.1]} 16... Nd7 {[%clk
0:01:34.5]} 17. Qf4 {[%clk 0:01:50.8]} 17... Qf6 {[%clk 0:01:28]} 18. Qc7 {[%clk
0:01:46.7]} 18... Qb6 {[%clk 0:01:25.3]} 19. Qf4 {[%clk 0:01:38.2]} 19... Qxb2
{[%clk 0:01:13.8]} 20. Ne4 {[%clk 0:01:32.8]} 20... Ne5 {[%clk 0:01:11.5]} 21.
Nxe5 {[%clk 0:01:24.3]} 21... Qxe5 {[%clk 0:01:11]} 22. Qxf7+ {[%clk 0:01:20.1]}
22... Kh8 {[%clk 0:01:11.3]} 23. Nxc5 {[%clk 0:00:39.1]} 23... Bf5 {[%clk
0:01:03.2]} 24. Ne6 {[%clk 0:00:32.8]} 24... Bh6 {[%clk 0:00:48.5]} 25. g4
{[%clk 0:00:29]} 25... Bxe6 {[%clk 0:00:31.2]} 26. dxe6 {[%clk 0:00:26.3]} 26...
Rf8 {[%clk 0:00:31.5]} 27. Qxb7 {[%clk 0:00:18.7]} 27... Qxe6 {[%clk 0:00:20]}
28. Rxf8+ {[%clk 0:00:16.1]} 28... Bxf8 {[%clk 0:00:19.4]} 29. Bd5 {[%clk
0:00:13.2]} 29... Bc5+ {[%clk 0:00:17.3]} 30. Kf1 {[%clk 0:00:11.7]} 30... Qf6+
{[%clk 0:00:15.8]} 31. Bf3 {[%clk 0:00:10.9]} 31... Qa1+ {[%clk 0:00:14.5]} 32.
Kg2 {[%clk 0:00:07.7]} 32... Qg1# {[%clk 0:00:13]} 0-1

[Event "*** Titled Tuesday Blitz"]
[Site "Chess.com"]
[Date "2021.04.20"]
[Round "4"]
[White "Murad_Ibrahimli"]
[Black "sara_khm"]
[Result "1-0"]
[WhiteElo "2738"]
[BlackElo "2524"]
[TimeControl "180+1"]
[EndTime "10:37:47 PDT"]
[Termination "Murad_Ibrahimli won by resignation"]

1. Nf3 {[%clk 0:02:56.6]} 1... Nf6 {[%clk 0:02:59.6]} 2. b4 {[%clk 0:02:55.3]}
2... d5 {[%clk 0:02:59.1]} 3. Bb2 {[%clk 0:02:54.5]} 3... g6 {[%clk 0:02:59.1]}
4. e3 {[%clk 0:02:51.3]} 4... Bg7 {[%clk 0:02:59.3]} 5. Be2 {[%clk 0:02:50.8]}
5... O-O {[%clk 0:02:58.7]} 6. O-O {[%clk 0:02:49.9]} 6... c6 {[%clk 0:02:53.5]}
7. c4 {[%clk 0:02:49.3]} 7... dxc4 {[%clk 0:02:51.9]} 8. Bxc4 {[%clk 0:02:48.2]}
8... Nbd7 {[%clk 0:02:34.7]} 9. Nc3 {[%clk 0:02:41.1]} 9... Nb6 {[%clk
0:02:32.2]} 10. Bb3 {[%clk 0:02:40.3]} 10... Nfd5 {[%clk 0:02:27.4]} 11. a3
{[%clk 0:02:34.2]} 11... Bg4 {[%clk 0:02:06.7]} 12. Rc1 {[%clk 0:02:19.7]} 12...
Nxc3 {[%clk 0:02:03.1]} 13. Bxc3 {[%clk 0:02:15.3]} 13... Bxf3 {[%clk
0:01:59.2]} 14. Qxf3 {[%clk 0:02:14]} 14... Bxc3 {[%clk 0:01:59]} 15. dxc3
{[%clk 0:02:14.1]} 15... Qc7 {[%clk 0:01:54.6]} 16. h4 {[%clk 0:02:11.7]} 16...
h5 {[%clk 0:01:54.1]} 17. c4 {[%clk 0:02:04.3]} 17... c5 {[%clk 0:01:53]} 18.
Rfd1 {[%clk 0:02:01.8]} 18... Nd7 {[%clk 0:01:43.4]} 19. Rd5 {[%clk 0:01:41.5]}
19... b6 {[%clk 0:01:39]} 20. b5 {[%clk 0:01:31.9]} 20... Nf6 {[%clk 0:01:38.3]}
21. Rd2 {[%clk 0:01:29.4]} 21... Ng4 {[%clk 0:01:36.9]} 22. g3 {[%clk
0:01:27.3]} 22... Rad8 {[%clk 0:01:34.7]} 23. Rcd1 {[%clk 0:01:24.9]} 23... Rxd2
{[%clk 0:01:33.8]} 24. Rxd2 {[%clk 0:01:25.8]} 24... Rd8 {[%clk 0:01:33.7]} 25.
Qc6 {[%clk 0:01:18.1]} 25... Qb8 {[%clk 0:01:28.5]} 26. Rd7 {[%clk 0:01:00.5]}
26... Rxd7 {[%clk 0:01:27.2]} 27. Qxd7 {[%clk 0:01:00.6]} 27... Qe5 {[%clk
0:01:19.2]} 28. Bd1 {[%clk 0:00:59.8]} 28... Qa1 {[%clk 0:01:12.6]} 29. Kg2
{[%clk 0:00:59.2]} 29... Nf6 {[%clk 0:01:12.5]} 30. Qxe7 {[%clk 0:00:53.3]}
30... Kg7 {[%clk 0:01:06.7]} 31. Bf3 {[%clk 0:00:51.5]} 31... Qxa3 {[%clk
0:01:00.3]} 32. e4 {[%clk 0:00:51.2]} 32... Qc3 {[%clk 0:00:56.4]} 33. e5 {[%clk
0:00:50]} 33... Ng8 {[%clk 0:00:56.7]} 34. Qxa7 {[%clk 0:00:46.4]} 34... Qxc4
{[%clk 0:00:52.2]} 35. Qxb6 {[%clk 0:00:46]} 35... Ne7 {[%clk 0:00:51.7]} 36.
Qd6 {[%clk 0:00:44.1]} 36... Nf5 {[%clk 0:00:48.4]} 37. Qd7 {[%clk 0:00:39]}
37... Qa2 {[%clk 0:00:33.9]} 38. e6 {[%clk 0:00:36.3]} 38... Ne3+ {[%clk
0:00:18.2]} 39. Kg1 {[%clk 0:00:35.3]} 39... Qb1+ {[%clk 0:00:15.2]} 40. Kh2
{[%clk 0:00:35.8]} 40... Nf1+ {[%clk 0:00:15.1]} 41. Kg2 {[%clk 0:00:35.6]}
41... Qxb5 {[%clk 0:00:12.9]} 42. Qxb5 {[%clk 0:00:34.2]} 1-0

[Event "*** Titled Tuesday Blitz"]
[Site "Chess.com"]
[Date "2021.04.20"]
[Round "4"]
[White "OlegKrivonosov"]
[Black "The_filthy"]
[Result "1-0"]
[WhiteElo "2623"]
[BlackElo "2423"]
[TimeControl "180+1"]
[EndTime "10:37:48 PDT"]
[Termination "OlegKrivonosov won on time"]

1. Nf3 {[%clk 0:03:00.9]} 1... d5 {[%clk 0:02:58.6]} 2. d4 {[%clk 0:02:59.8]}
2... c6 {[%clk 0:02:59]} 3. c4 {[%clk 0:02:59.5]} 3... Nf6 {[%clk 0:02:59.2]} 4.
cxd5 {[%clk 0:02:59.4]} 4... cxd5 {[%clk 0:02:59.8]} 5. Nc3 {[%clk 0:02:59.7]}
5... Nc6 {[%clk 0:03:00.2]} 6. Bf4 {[%clk 0:02:59.5]} 6... e6 {[%clk 0:02:50.7]}
7. e3 {[%clk 0:02:58.9]} 7... Bb4 {[%clk 0:02:48.9]} 8. Bd3 {[%clk 0:02:57.6]}
8... O-O {[%clk 0:02:42.7]} 9. O-O {[%clk 0:02:56.8]} 9... a6 {[%clk 0:02:40.9]}
10. Rc1 {[%clk 0:02:55.7]} 10... Bd6 {[%clk 0:02:38.4]} 11. Bg3 {[%clk
0:02:53.9]} 11... Bxg3 {[%clk 0:02:30.3]} 12. hxg3 {[%clk 0:02:53]} 12... Re8
{[%clk 0:02:30.8]} 13. a3 {[%clk 0:02:48.7]} 13... e5 {[%clk 0:02:25.2]} 14.
dxe5 {[%clk 0:02:48.4]} 14... Nxe5 {[%clk 0:02:25.4]} 15. Be2 {[%clk 0:02:48.9]}
15... Nc4 {[%clk 0:02:17.7]} 16. Qb3 {[%clk 0:02:29.6]} 16... b5 {[%clk
0:02:13.4]} 17. Rfd1 {[%clk 0:02:26.4]} 17... Be6 {[%clk 0:02:10.3]} 18. Nd4
{[%clk 0:02:23]} 18... Qb6 {[%clk 0:01:46.4]} 19. Bf3 {[%clk 0:02:19.2]} 19...
Rad8 {[%clk 0:01:37.5]} 20. Nce2 {[%clk 0:02:17.3]} 20... Rc8 {[%clk 0:01:15.6]}
21. Qb4 {[%clk 0:02:06]} 21... Nd7 {[%clk 0:01:04.2]} 22. Nxe6 {[%clk
0:01:51.2]} 22... fxe6 {[%clk 0:01:02.2]} 23. b3 {[%clk 0:01:44.4]} 23... Nce5
{[%clk 0:00:38.7]} 24. Rxc8 {[%clk 0:01:41.5]} 24... Nxf3+ {[%clk 0:00:37]} 25.
gxf3 {[%clk 0:01:40.1]} 25... Rxc8 {[%clk 0:00:37.7]} 26. Qe7 {[%clk 0:01:36.4]}
26... Nf8 {[%clk 0:00:35]} 27. Nd4 {[%clk 0:01:33.6]} 27... Rc7 {[%clk
0:00:28.4]} 28. Qd8 {[%clk 0:01:26.2]} 28... Rb7 {[%clk 0:00:15.2]} 29. Qxb6
{[%clk 0:01:18.9]} 29... Rxb6 {[%clk 0:00:16.1]} 30. f4 {[%clk 0:01:18.9]} 30...
Nd7 {[%clk 0:00:08]} 31. Rc1 {[%clk 0:01:19.1]} 31... Nf6 {[%clk 0:00:07.6]} 32.
Rc7 {[%clk 0:01:16.6]} 32... Ne4 {[%clk 0:00:06.7]} 33. Kg2 {[%clk 0:01:14.4]}
33... h5 {[%clk 0:00:06.3]} 34. Re7 {[%clk 0:01:07.7]} 34... a5 {[%clk 0:00:05]}
35. f3 {[%clk 0:00:56.5]} 35... Nd2 {[%clk 0:00:04.8]} 36. Ra7 {[%clk
0:00:50.7]} 36... a4 {[%clk 0:00:01.3]} 37. bxa4 {[%clk 0:00:46.7]} 37... bxa4
{[%clk 0:00:02.2]} 38. Rxa4 {[%clk 0:00:45.8]} 38... Nc4 {[%clk 0:00:03.1]} 39.
e4 {[%clk 0:00:40.2]} 39... Rb2+ {[%clk 0:00:03]} 40. Kh3 {[%clk 0:00:39.1]}
40... Ne3 {[%clk 0:00:02.9]} 41. Nxe6 {[%clk 0:00:32.5]} 41... Nf1 {[%clk
0:00:03.1]} 42. Kh4 {[%clk 0:00:32.7]} 1-0

[Event "*** Titled Tuesday Blitz"]
[Site "Chess.com"]
[Date "2021.04.20"]
[Round "4"]
[White "Taktikmonster"]
[Black "Diego_FloresQ"]
[Result "0-1"]
[WhiteElo "2417"]
[BlackElo "2610"]
[TimeControl "180+1"]
[EndTime "10:37:48 PDT"]
[Termination "Diego_FloresQ won on time"]

1. e4 {[%clk 0:03:00.9]} 1... c5 {[%clk 0:03:00.9]} 2. Nf3 {[%clk 0:02:57.6]}
2... e6 {[%clk 0:03:01.4]} 3. d4 {[%clk 0:02:56.8]} 3... cxd4 {[%clk 0:03:02.3]}
4. Nxd4 {[%clk 0:02:57.4]} 4... Nf6 {[%clk 0:03:00.4]} 5. Nc3 {[%clk 0:02:57.2]}
5... d6 {[%clk 0:02:59.5]} 6. g4 {[%clk 0:02:55.3]} 6... h6 {[%clk 0:02:59.2]}
7. f3 {[%clk 0:02:13]} 7... Nc6 {[%clk 0:02:54.5]} 8. Be3 {[%clk 0:02:12.3]}
8... a6 {[%clk 0:02:54.5]} 9. Qd2 {[%clk 0:02:10.4]} 9... d5 {[%clk 0:02:54.9]}
10. exd5 {[%clk 0:02:08.6]} 10... Nxd5 {[%clk 0:02:54.5]} 11. Nxd5 {[%clk
0:02:08.4]} 11... Qxd5 {[%clk 0:02:51.8]} 12. Nxc6 {[%clk 0:01:32.5]} 12... Qxc6
{[%clk 0:02:46.3]} 13. O-O-O {[%clk 0:01:31.1]} 13... Be7 {[%clk 0:02:43.3]} 14.
Bd3 {[%clk 0:01:18.5]} 14... O-O {[%clk 0:01:50.4]} 15. Bxh6 {[%clk 0:01:14.9]}
15... Qxf3 {[%clk 0:01:29]} 16. Rdf1 {[%clk 0:00:34.5]} 16... Qh3 {[%clk
0:01:14.9]} 17. Bxg7 {[%clk 0:00:21.5]} 17... Kxg7 {[%clk 0:01:03.2]} 18. Qc3+
{[%clk 0:00:20.4]} 18... Kg8 {[%clk 0:00:59.2]} 19. Rhg1 {[%clk 0:00:10.2]}
19... Bg5+ {[%clk 0:00:51.9]} 20. Kb1 {[%clk 0:00:09.9]} 20... Qh4 {[%clk
0:00:50.3]} 21. Rg3 {[%clk 0:00:03.5]} 21... Bd7 {[%clk 0:00:50.5]} 22. Be4
{[%clk 0:00:02.3]} 22... Rac8 {[%clk 0:00:35.7]} 23. Qf3 {[%clk 0:00:02.4]}
23... Bb5 {[%clk 0:00:09.7]} 24. Rh3 {[%clk 0:00:02.2]} 24... Bxf1 {[%clk
0:00:09.7]} 25. Rxh4 {[%clk 0:00:01.9]} 25... Bxh4 {[%clk 0:00:10.6]} 26. Qxf1
{[%clk 0:00:02.2]} 26... Rc7 {[%clk 0:00:10.7]} 27. Qh3 {[%clk 0:00:02.3]} 27...
f5 {[%clk 0:00:07.8]} 28. Qxh4 {[%clk 0:00:02.2]} 28... fxe4 {[%clk 0:00:07.4]}
29. Qg5+ {[%clk 0:00:02.8]} 29... Rg7 {[%clk 0:00:07]} 30. Qc1 {[%clk 0:00:01]}
30... Rgf7 {[%clk 0:00:06.4]} 0-1